[Event "Titled Tuesday Blitz May 4 2021"]
[White "Abdusattorov, Nodirbek"]
[Black "Pantzar, Milton"]
[WhiteFideId "14204118"]
[BlackFideId "1721003"]
[WhiteElo "2662"]
[BlackElo "2323"]
[Result "1-0"]
[Round "08"]
[TimeControl "180+1"]
[Date "2021.05.04"]
[WhiteClock "0:01:46"]
[BlackClock "0:00:26"]

1. d4 {[%clk 0:03:00]}  d5 {[%clk 0:02:56]} 2. Nf3 {[%clk 0:03:00]}  e6 {[%clk 0:02:56]} 3. c4 {[%clk 0:03:00]}  c5 {[%clk 0:02:55]} 4. cxd5 {[%clk 0:03:00]}  exd5 {[%clk 0:02:55]} 5. g3 {[%clk 0:03:00]}  Nf6 {[%clk 0:02:55]} 6. Bg2 {[%clk 0:03:01]}  Nc6 {[%clk 0:02:54]} 7. O-O {[%clk 0:03:01]}  Be7 {[%clk 0:02:54]} 8. dxc5 {[%clk 0:03:00]}  Bxc5 {[%clk 0:02:54]} 9. a3 {[%clk 0:03:00]}  Ne4 {[%clk 0:02:52]} 10. b4 {[%clk 0:03:00]}  Be7 {[%clk 0:02:52]} 11. Bb2 {[%clk 0:03:00]}  Bf6 {[%clk 0:02:52]} 12. Nd4 {[%clk 0:02:58]}  O-O {[%clk 0:02:40]} 13. Ra2 {[%clk 0:02:52]}  h5 {[%clk 0:02:24]} 14. Nxc6 {[%clk 0:02:39]}  bxc6 {[%clk 0:02:24]} 15. Nd2 {[%clk 0:02:39]}  Nc3 {[%clk 0:02:01]} 16. Bxc3 {[%clk 0:02:38]}  Bxc3 {[%clk 0:02:02]} 17. Rc2 {[%clk 0:02:36]}  Qf6 {[%clk 0:02:02]} 18. Qc1 {[%clk 0:02:32]}  Bxd2 {[%clk 0:02:01]} 19. Qxd2 {[%clk 0:02:32]}  h4 {[%clk 0:01:59]} 20. Rfc1 {[%clk 0:02:31]}  Bd7 {[%clk 0:01:59]} 21. e4 {[%clk 0:02:23]}  h3 {[%clk 0:01:55]} 22. Bh1 {[%clk 0:02:21]}  Rad8 {[%clk 0:01:51]} 23. exd5 {[%clk 0:02:14]}  Be6 {[%clk 0:01:25]} 24. Rxc6 {[%clk 0:02:10]}  Qf5 {[%clk 0:00:59]} 25. R6c5 {[%clk 0:01:57]}  Rfe8 {[%clk 0:00:45]} 26. dxe6 {[%clk 0:01:48]}  Qxc5 {[%clk 0:00:42]} 27. exf7+ {[%clk 0:01:48]}  Kxf7 {[%clk 0:00:29]} 28. Qf4+ {[%clk 0:01:47]}  Kg8 {[%clk 0:00:26]} 29. bxc5 {[%clk 0:01:46]} 1-0


[Site "https://www.chess.com"]

[Event "Titled Tuesday Blitz May 4 2021"]
[White "Acor, Corey"]
[Black "Sellitti, Federico"]
[WhiteFideId "2024861"]
[BlackFideId "821829"]
[WhiteElo "2758"]
[BlackElo "2620"]
[Result "1-0"]
[Round "08"]
[TimeControl "180+1"]
[Date "2021.05.04"]
[WhiteClock "0:00:07"]
[BlackClock "0:00:07"]

1. e4 {[%clk 0:03:00]}  c5 {[%clk 0:02:59]} 2. Nc3 {[%clk 0:03:01]}  Nc6 {[%clk 0:02:59]} 3. g3 {[%clk 0:03:01]}  g6 {[%clk 0:02:59]} 4. Bg2 {[%clk 0:03:02]}  Bg7 {[%clk 0:02:59]} 5. d3 {[%clk 0:03:03]}  e6 {[%clk 0:03:00]} 6. Be3 {[%clk 0:03:04]}  Nd4 {[%clk 0:03:00]} 7. Qd2 {[%clk 0:03:04]}  Ne7 {[%clk 0:02:59]} 8. Nd1 {[%clk 0:03:04]}  Rb8 {[%clk 0:02:55]} 9. c3 {[%clk 0:03:03]}  Ndc6 {[%clk 0:02:56]} 10. Bxc5 {[%clk 0:03:03]}  O-O {[%clk 0:02:57]} 11. Be3 {[%clk 0:03:03]}  d5 {[%clk 0:02:56]} 12. Bh6 {[%clk 0:03:03]}  b5 {[%clk 0:02:43]} 13. h4 {[%clk 0:02:51]}  dxe4 {[%clk 0:02:32]} 14. Bxg7 {[%clk 0:02:42]}  Kxg7 {[%clk 0:02:33]} 15. dxe4 {[%clk 0:02:42]}  Qxd2+ {[%clk 0:02:30]} 16. Kxd2 {[%clk 0:02:43]}  Rd8+ {[%clk 0:02:30]} 17. Kc2 {[%clk 0:02:42]}  b4 {[%clk 0:02:28]} 18. Ne3 {[%clk 0:02:18]}  bxc3 {[%clk 0:02:21]} 19. bxc3 {[%clk 0:02:19]}  Ba6 {[%clk 0:02:22]} 20. Bf1 {[%clk 0:02:16]}  Bxf1 {[%clk 0:02:10]} 21. Rxf1 {[%clk 0:02:15]}  Rbc8 {[%clk 0:02:11]} 22. Ne2 {[%clk 0:02:03]}  Nb4+ {[%clk 0:02:04]} 23. Kb1 {[%clk 0:02:03]}  Nd3 {[%clk 0:02:04]} 24. f4 {[%clk 0:01:52]}  Nc6 {[%clk 0:01:31]} 25. Rd1 {[%clk 0:01:50]}  Rb8+ {[%clk 0:01:12]} 26. Ka1 {[%clk 0:01:49]}  Nf2 {[%clk 0:01:12]} 27. Rxd8 {[%clk 0:01:42]}  Rxd8 {[%clk 0:01:13]} 28. Rb1 {[%clk 0:01:33]}  Nxe4 {[%clk 0:01:11]} 29. Rd1 {[%clk 0:01:14]}  Rxd1+ {[%clk 0:01:03]} 30. Nxd1 {[%clk 0:01:15]}  Ne7 {[%clk 0:01:03]} 31. Ne3 {[%clk 0:01:13]}  Nf5 {[%clk 0:00:38]} 32. Nf1 {[%clk 0:00:53]}  Kh6 {[%clk 0:00:31]} 33. g4 {[%clk 0:00:31]}  Nxh4 {[%clk 0:00:31]} 34. g5+ {[%clk 0:00:31]}  Kh5 {[%clk 0:00:22]} 35. Ne3 {[%clk 0:00:20]}  Nf5 {[%clk 0:00:20]} 36. Nxf5 {[%clk 0:00:18]}  gxf5 {[%clk 0:00:19]} 37. c4 {[%clk 0:00:19]}  Kg4 {[%clk 0:00:19]} 38. Kb2 {[%clk 0:00:19]}  f6 {[%clk 0:00:19]} 39. gxf6 {[%clk 0:00:17]}  Nxf6 {[%clk 0:00:20]} 40. c5 {[%clk 0:00:16]}  h5 {[%clk 0:00:21]} 41. c6 {[%clk 0:00:15]}  Ne8 {[%clk 0:00:21]} 42. Kc3 {[%clk 0:00:13]}  h4 {[%clk 0:00:21]} 43. Ng1 {[%clk 0:00:12]}  Kxf4 {[%clk 0:00:20]} 44. Kd4 {[%clk 0:00:12]}  e5+ {[%clk 0:00:20]} 45. Kd5 {[%clk 0:00:12]}  e4 {[%clk 0:00:21]} 46. Ke6 {[%clk 0:00:07]}  Nc7+ {[%clk 0:00:21]} 47. Kd7 {[%clk 0:00:06]}  Nd5 {[%clk 0:00:21]} 48. Kd6 {[%clk 0:00:06]}  Nb6 {[%clk 0:00:21]} 49. c7 {[%clk 0:00:07]}  e3 {[%clk 0:00:21]} 50. a4 {[%clk 0:00:06]}  Kg3 {[%clk 0:00:20]} 51. a5 {[%clk 0:00:06]}  Nc4+ {[%clk 0:00:17]} 52. Ke7 {[%clk 0:00:05]}  Nxa5 {[%clk 0:00:07]} 53. c8=Q {[%clk 0:00:05]}  Kf2 {[%clk 0:00:08]} 54. Nh3+ {[%clk 0:00:04]}  Kg2 {[%clk 0:00:07]} 55. Qxf5 {[%clk 0:00:04]}  e2 {[%clk 0:00:07]} 56. Nf4+ {[%clk 0:00:05]}  Kf1 {[%clk 0:00:07]} 57. Nxe2+ {[%clk 0:00:06]}  Kxe2 {[%clk 0:00:08]} 58. Qxa5 {[%clk 0:00:06]}  h3 {[%clk 0:00:08]} 59. Qh5+ {[%clk 0:00:06]}  Kd2 {[%clk 0:00:07]} 60. Qxh3 {[%clk 0:00:07]}  a5 {[%clk 0:00:07]} 61. Qa3 {[%clk 0:00:07]} 1-0


[Site "https://www.chess.com"]

[Event "Titled Tuesday Blitz May 4 2021"]
[White "Alvarez Fernandez, Enrique"]
[Black "Chyzy, Jakub"]
[WhiteFideId "2227398"]
[BlackFideId "21806209"]
[WhiteElo "2316"]
[BlackElo "2013"]
[Result "0-1"]
[Round "08"]
[TimeControl "180+1"]
[Date "2021.05.04"]
[WhiteClock "0:00:30"]
[BlackClock "0:00:21"]

1. e4 {[%clk 0:03:00]}  Nf6 {[%clk 0:03:00]} 2. e5 {[%clk 0:03:00]}  Nd5 {[%clk 0:02:57]} 3. c4 {[%clk 0:03:00]}  Nb6 {[%clk 0:02:56]} 4. a4 {[%clk 0:02:59]}  a5 {[%clk 0:02:56]} 5. d4 {[%clk 0:02:58]}  d6 {[%clk 0:02:55]} 6. Nf3 {[%clk 0:02:54]}  Bg4 {[%clk 0:02:51]} 7. Be2 {[%clk 0:02:52]}  Nc6 {[%clk 0:02:49]} 8. exd6 {[%clk 0:02:50]}  exd6 {[%clk 0:02:49]} 9. Nc3 {[%clk 0:02:50]}  Be7 {[%clk 0:02:45]} 10. O-O {[%clk 0:02:45]}  O-O {[%clk 0:02:30]} 11. Be3 {[%clk 0:02:41]}  Bxf3 {[%clk 0:02:29]} 12. Bxf3 {[%clk 0:02:40]}  Nxc4 {[%clk 0:02:28]} 13. b3 {[%clk 0:02:32]}  Nxe3 {[%clk 0:02:21]} 14. fxe3 {[%clk 0:02:33]}  g6 {[%clk 0:02:11]} 15. Qe1 {[%clk 0:02:27]}  Bf6 {[%clk 0:02:06]} 16. Qf2 {[%clk 0:02:27]}  Bg7 {[%clk 0:02:04]} 17. Rac1 {[%clk 0:02:18]}  Nb4 {[%clk 0:01:55]} 18. Qd2 {[%clk 0:02:11]}  c6 {[%clk 0:01:51]} 19. Rfe1 {[%clk 0:02:08]}  d5 {[%clk 0:01:48]} 20. Na2 {[%clk 0:02:06]}  Nxa2 {[%clk 0:01:43]} 21. Qxa2 {[%clk 0:02:06]}  f5 {[%clk 0:01:42]} 22. Qe2 {[%clk 0:02:02]}  Qd6 {[%clk 0:01:41]} 23. Rc5 {[%clk 0:01:44]}  f4 {[%clk 0:01:26]} 24. Kh1 {[%clk 0:01:34]}  Rae8 {[%clk 0:01:18]} 25. Qd3 {[%clk 0:01:23]}  fxe3 {[%clk 0:00:48]} 26. Rxe3 {[%clk 0:01:18]}  Qf4 {[%clk 0:00:46]} 27. Rxe8 {[%clk 0:01:03]}  Rxe8 {[%clk 0:00:47]} 28. g3 {[%clk 0:01:03]}  Qxd4 {[%clk 0:00:33]} 29. Qxd4 {[%clk 0:01:00]}  Bxd4 {[%clk 0:00:34]} 30. Rxa5 {[%clk 0:01:00]}  Re3 {[%clk 0:00:32]} 31. Ra8+ {[%clk 0:00:54]}  Kg7 {[%clk 0:00:31]} 32. Kg2 {[%clk 0:00:48]}  Rxb3 {[%clk 0:00:31]} 33. Rb8 {[%clk 0:00:47]}  Be5 {[%clk 0:00:25]} 34. Re8 {[%clk 0:00:45]}  Kf6 {[%clk 0:00:24]} 35. Rf8+ {[%clk 0:00:43]}  Ke7 {[%clk 0:00:24]} 36. Ra8 {[%clk 0:00:40]}  d4 {[%clk 0:00:20]} 37. Ra7 {[%clk 0:00:35]}  Kd6 {[%clk 0:00:20]} 38. a5 {[%clk 0:00:29]}  d3 {[%clk 0:00:20]} 39. a6 {[%clk 0:00:23]}  bxa6 {[%clk 0:00:14]} 40. Rxa6 {[%clk 0:00:24]}  Rb2+ {[%clk 0:00:13]} 41. Kh3 {[%clk 0:00:23]}  Rc2 {[%clk 0:00:12]} 42. Kh4 {[%clk 0:00:22]}  d2 {[%clk 0:00:12]} 43. g4 {[%clk 0:00:20]}  Rc3 {[%clk 0:00:12]} 44. Be2 {[%clk 0:00:20]}  Bxh2 {[%clk 0:00:11]} 45. g5 {[%clk 0:00:18]}  Bg3+ {[%clk 0:00:11]} 46. Kg4 {[%clk 0:00:18]}  Be5 {[%clk 0:00:11]} 47. Ra4 {[%clk 0:00:17]}  Rc1 {[%clk 0:00:09]} 48. Re4 {[%clk 0:00:17]}  d1=Q {[%clk 0:00:08]} 49. Bxd1 {[%clk 0:00:17]}  Rxd1 {[%clk 0:00:09]} 50. Kf3 {[%clk 0:00:17]}  Rd3+ {[%clk 0:00:09]} 51. Kg4 {[%clk 0:00:17]}  Rd4 {[%clk 0:00:09]} 52. Rxd4+ {[%clk 0:00:17]}  Bxd4 {[%clk 0:00:10]} 53. Kf4 {[%clk 0:00:18]}  c5 {[%clk 0:00:11]} 54. Ke4 {[%clk 0:00:18]}  Bb2 {[%clk 0:00:11]} 55. Kf4 {[%clk 0:00:19]}  Bc1+ {[%clk 0:00:12]} 56. Kg4 {[%clk 0:00:19]}  Bxg5 {[%clk 0:00:13]} 57. Kxg5 {[%clk 0:00:20]}  c4 {[%clk 0:00:13]} 58. Kh6 {[%clk 0:00:21]}  Kd5 {[%clk 0:00:14]} 59. Kxh7 {[%clk 0:00:22]}  c3 {[%clk 0:00:15]} 60. Kxg6 {[%clk 0:00:23]}  c2 {[%clk 0:00:16]} 61. Kf6 {[%clk 0:00:24]}  c1=Q {[%clk 0:00:16]} 62. Ke7 {[%clk 0:00:25]}  Qd2 {[%clk 0:00:17]} 63. Kd7 {[%clk 0:00:25]}  Qd4 {[%clk 0:00:18]} 64. Kd8 {[%clk 0:00:26]}  Qc5 {[%clk 0:00:19]} 65. Ke8 {[%clk 0:00:27]}  Qc6+ {[%clk 0:00:19]} 66. Kd8 {[%clk 0:00:28]}  Qb7 {[%clk 0:00:19]} 67. Ke8 {[%clk 0:00:29]}  Ke6 {[%clk 0:00:20]} 68. Kd8 {[%clk 0:00:30]}  Qd7# {[%clk 0:00:21]} 0-1


[Site "https://www.chess.com"]

[Event "Titled Tuesday Blitz May 4 2021"]
[White "Antonio, Jorge Carlos"]
[Black "Sikorova, Olga"]
[WhiteFideId "113190"]
[BlackFideId "307033"]
[WhiteElo "2247"]
[BlackElo "2188"]
[Result "0-1"]
[Round "08"]
[TimeControl "180+1"]
[Date "2021.05.04"]
[WhiteClock "0:00:14"]
[BlackClock "0:00:04"]

1. e4 {[%clk 0:03:00]}  e6 {[%clk 0:02:59]} 2. d4 {[%clk 0:03:00]}  d5 {[%clk 0:02:59]} 3. Nc3 {[%clk 0:02:58]}  Bb4 {[%clk 0:02:57]} 4. exd5 {[%clk 0:02:53]}  exd5 {[%clk 0:02:55]} 5. Bd3 {[%clk 0:02:47]}  Nf6 {[%clk 0:02:54]} 6. Nf3 {[%clk 0:02:46]}  Bg4 {[%clk 0:02:47]} 7. Qe2+ {[%clk 0:02:42]}  Qe7 {[%clk 0:02:43]} 8. Qxe7+ {[%clk 0:02:37]}  Bxe7 {[%clk 0:02:38]} 9. Ne5 {[%clk 0:02:37]}  Be6 {[%clk 0:02:36]} 10. O-O {[%clk 0:02:33]}  Nbd7 {[%clk 0:02:31]} 11. f4 {[%clk 0:02:29]}  c6 {[%clk 0:02:25]} 12. f5 {[%clk 0:02:26]}  Nxe5 {[%clk 0:02:20]} 13. dxe5 {[%clk 0:02:26]}  Bc5+ {[%clk 0:02:20]} 14. Kh1 {[%clk 0:02:20]}  Ng4 {[%clk 0:02:21]} 15. fxe6 {[%clk 0:02:14]}  Nf2+ {[%clk 0:02:20]} 16. Rxf2 {[%clk 0:02:10]}  Bxf2 {[%clk 0:02:19]} 17. exf7+ {[%clk 0:02:06]}  Kxf7 {[%clk 0:02:20]} 18. Bf4 {[%clk 0:02:02]}  Bd4 {[%clk 0:02:04]} 19. Ne2 {[%clk 0:01:53]}  Bb6 {[%clk 0:02:00]} 20. c4 {[%clk 0:01:48]}  Ke6 {[%clk 0:01:58]} 21. Rc1 {[%clk 0:01:41]}  h6 {[%clk 0:01:36]} 22. c5 {[%clk 0:01:37]}  Bc7 {[%clk 0:01:32]} 23. Nd4+ {[%clk 0:01:35]}  Ke7 {[%clk 0:01:27]} 24. b4 {[%clk 0:01:28]}  g5 {[%clk 0:01:21]} 25. Bg3 {[%clk 0:01:26]}  a6 {[%clk 0:01:17]} 26. a4 {[%clk 0:01:25]}  Rhf8 {[%clk 0:01:15]} 27. h4 {[%clk 0:01:18]}  Rf7 {[%clk 0:00:59]} 28. Nf5+ {[%clk 0:01:01]}  Ke6 {[%clk 0:00:56]} 29. Nxh6 {[%clk 0:00:58]}  Rff8 {[%clk 0:00:50]} 30. Be2 {[%clk 0:00:49]}  d4 {[%clk 0:00:49]} 31. Bg4+ {[%clk 0:00:48]}  Kd5 {[%clk 0:00:49]} 32. e6 {[%clk 0:00:45]}  Bxg3 {[%clk 0:00:45]} 33. e7 {[%clk 0:00:38]}  Rfe8 {[%clk 0:00:33]} 34. hxg5 {[%clk 0:00:38]}  Rxe7 {[%clk 0:00:32]} 35. Nf5 {[%clk 0:00:38]}  Rh7+ {[%clk 0:00:20]} 36. Kg1 {[%clk 0:00:37]}  Bf4 {[%clk 0:00:20]} 37. g6 {[%clk 0:00:37]}  Bxc1 {[%clk 0:00:07]} 38. gxh7 {[%clk 0:00:36]}  Rh8 {[%clk 0:00:07]} 39. Nd6 {[%clk 0:00:34]}  Rxh7 {[%clk 0:00:06]} 40. Bf3+ {[%clk 0:00:32]}  Ke5 {[%clk 0:00:06]} 41. Nc4+ {[%clk 0:00:30]}  Kf4 {[%clk 0:00:05]} 42. Nd6 {[%clk 0:00:26]}  Be3+ {[%clk 0:00:04]} 43. Kf1 {[%clk 0:00:25]}  d3 {[%clk 0:00:04]} 44. g3+ {[%clk 0:00:14]}  Kxf3 {[%clk 0:00:04]} 0-1


[Site "https://www.chess.com"]

[Event "Titled Tuesday Blitz May 4 2021"]
[White "Ashiev, Eduard"]
[Black "Khnykin, Nikolay"]
[WhiteFideId "4130090"]
[BlackFideId "4188853"]
[WhiteElo "2106"]
[BlackElo "2280"]
[Result "1-0"]
[Round "08"]
[TimeControl "180+1"]
[Date "2021.05.04"]
[WhiteClock "0:00:06"]
[BlackClock "0:00:06"]

1. d4 {[%clk 0:02:49]}  f5 {[%clk 0:02:58]} 2. Bg5 {[%clk 0:02:46]}  Nf6 {[%clk 0:02:55]} 3. Bxf6 {[%clk 0:02:46]}  exf6 {[%clk 0:02:55]} 4. c4 {[%clk 0:02:44]}  g6 {[%clk 0:02:55]} 5. Nc3 {[%clk 0:02:44]}  Bg7 {[%clk 0:02:54]} 6. e3 {[%clk 0:02:44]}  O-O {[%clk 0:02:54]} 7. h4 {[%clk 0:02:44]}  f4 {[%clk 0:02:50]} 8. exf4 {[%clk 0:02:39]}  Re8+ {[%clk 0:02:48]} 9. Be2 {[%clk 0:02:38]}  Nc6 {[%clk 0:02:48]} 10. h5 {[%clk 0:02:33]}  Qe7 {[%clk 0:02:42]} 11. hxg6 {[%clk 0:02:31]}  hxg6 {[%clk 0:02:38]} 12. Kf1 {[%clk 0:02:25]}  d6 {[%clk 0:02:38]} 13. Nd5 {[%clk 0:02:17]}  Qf7 {[%clk 0:02:34]} 14. f5 {[%clk 0:02:11]}  Bxf5 {[%clk 0:02:32]} 15. Nf3 {[%clk 0:02:06]}  Be4 {[%clk 0:02:30]} 16. Nf4 {[%clk 0:01:43]}  f5 {[%clk 0:02:26]} 17. Ng5 {[%clk 0:01:34]}  Qf6 {[%clk 0:02:22]} 18. Nxe4 {[%clk 0:01:15]}  Rxe4 {[%clk 0:02:21]} 19. Nd5 {[%clk 0:01:13]}  Qxd4 {[%clk 0:02:19]} 20. Qb3 {[%clk 0:01:04]}  Qe5 {[%clk 0:01:28]} 21. Bf3 {[%clk 0:00:52]}  Rd4 {[%clk 0:01:09]} 22. Re1 {[%clk 0:00:49]}  Na5 {[%clk 0:01:02]} 23. Qb5 {[%clk 0:00:10]}  Rxd5 {[%clk 0:00:19]} 24. Bxd5+ {[%clk 0:00:07]}  Kf8 {[%clk 0:00:17]} 25. Rxe5 {[%clk 0:00:07]}  Bxe5 {[%clk 0:00:16]} 26. Qd7 {[%clk 0:00:07]}  Nc6 {[%clk 0:00:06]} 27. Qf7# {[%clk 0:00:06]} 1-0


[Site "https://www.chess.com"]

[Event "Titled Tuesday Blitz May 4 2021"]
[White "Bartel, Michal"]
[Black "Senthil Maran K"]
[WhiteFideId "1119257"]
[BlackFideId "25035681"]
[WhiteElo "2271"]
[BlackElo "2194"]
[Result "1-0"]
[Round "08"]
[TimeControl "180+1"]
[Date "2021.05.04"]
[WhiteClock "0:00:41"]
[BlackClock "0:00:02"]

1. e4 {[%clk 0:02:59]}  c6 {[%clk 0:02:59]} 2. d4 {[%clk 0:02:56]}  d5 {[%clk 0:03:00]} 3. e5 {[%clk 0:02:54]}  Bf5 {[%clk 0:02:58]} 4. Nd2 {[%clk 0:02:54]}  e6 {[%clk 0:02:57]} 5. Nb3 {[%clk 0:02:52]}  Nd7 {[%clk 0:02:51]} 6. Be3 {[%clk 0:02:52]}  f6 {[%clk 0:02:50]} 7. f4 {[%clk 0:02:52]}  Nh6 {[%clk 0:02:48]} 8. Be2 {[%clk 0:02:50]}  Be4 {[%clk 0:02:39]} 9. Nf3 {[%clk 0:02:50]}  Nf5 {[%clk 0:02:38]} 10. Bf2 {[%clk 0:02:50]}  fxe5 {[%clk 0:02:32]} 11. fxe5 {[%clk 0:02:49]}  Be7 {[%clk 0:02:32]} 12. O-O {[%clk 0:02:49]}  O-O {[%clk 0:02:32]} 13. Nfd2 {[%clk 0:02:46]}  Bg5 {[%clk 0:02:18]} 14. Bg4 {[%clk 0:02:26]}  Qe7 {[%clk 0:02:06]} 15. Re1 {[%clk 0:02:01]}  Qf7 {[%clk 0:01:25]} 16. Nxe4 {[%clk 0:01:59]}  dxe4 {[%clk 0:01:26]} 17. Rxe4 {[%clk 0:01:59]}  Ne3 {[%clk 0:01:26]} 18. Bxe3 {[%clk 0:01:44]}  Bxe3+ {[%clk 0:01:27]} 19. Rxe3 {[%clk 0:01:44]}  Qf2+ {[%clk 0:01:25]} 20. Kh1 {[%clk 0:01:44]}  Qxe3 {[%clk 0:01:19]} 21. Bxe6+ {[%clk 0:01:45]}  Kh8 {[%clk 0:01:02]} 22. Bxd7 {[%clk 0:01:43]}  Rf2 {[%clk 0:00:57]} 23. Qd3 {[%clk 0:01:35]}  Qf4 {[%clk 0:00:49]} 24. Rg1 {[%clk 0:01:07]}  Rf8 {[%clk 0:00:48]} 25. h3 {[%clk 0:01:07]}  Qh4 {[%clk 0:00:42]} 26. Bg4 {[%clk 0:00:57]}  R8f4 {[%clk 0:00:35]} 27. Bd1 {[%clk 0:00:52]}  Rf8 {[%clk 0:00:31]} 28. Nc5 {[%clk 0:00:51]}  Qe7 {[%clk 0:00:24]} 29. Ne4 {[%clk 0:00:49]}  R2f4 {[%clk 0:00:22]} 30. c3 {[%clk 0:00:48]}  b6 {[%clk 0:00:22]} 31. Bc2 {[%clk 0:00:48]}  g6 {[%clk 0:00:19]} 32. Nf6 {[%clk 0:00:48]}  Kg7 {[%clk 0:00:19]} 33. Qg3 {[%clk 0:00:47]}  R8xf6 {[%clk 0:00:13]} 34. exf6+ {[%clk 0:00:47]}  Qxf6 {[%clk 0:00:11]} 35. Bd3 {[%clk 0:00:47]}  c5 {[%clk 0:00:10]} 36. dxc5 {[%clk 0:00:46]}  bxc5 {[%clk 0:00:11]} 37. Qe3 {[%clk 0:00:45]}  g5 {[%clk 0:00:10]} 38. Re1 {[%clk 0:00:45]}  Qh6 {[%clk 0:00:04]} 39. Qe7+ {[%clk 0:00:44]}  Rf7 {[%clk 0:00:04]} 40. Qxc5 {[%clk 0:00:42]}  g4 {[%clk 0:00:03]} 41. Qe5+ {[%clk 0:00:42]}  Rf6 {[%clk 0:00:02]} 42. Qg3 {[%clk 0:00:41]} 1-0


[Site "https://www.chess.com"]

[Event "Titled Tuesday Blitz May 4 2021"]
[White "Batchimeg, Tuvshintugs"]
[Black "Kanyamarala, Trisha"]
[WhiteFideId "4900839"]
[BlackFideId "45004722"]
[WhiteElo "2295"]
[BlackElo "2074"]
[Result "0-1"]
[Round "08"]
[TimeControl "180+1"]
[Date "2021.05.04"]
[WhiteClock "0:00:01"]
[BlackClock "0:00:05"]

1. e4 {[%clk 0:03:00]}  c5 {[%clk 0:02:57]} 2. Nf3 {[%clk 0:02:59]}  d6 {[%clk 0:02:57]} 3. d4 {[%clk 0:02:58]}  cxd4 {[%clk 0:02:58]} 4. Nxd4 {[%clk 0:02:58]}  Nf6 {[%clk 0:02:59]} 5. Nc3 {[%clk 0:02:57]}  Nc6 {[%clk 0:02:59]} 6. Be2 {[%clk 0:02:47]}  e5 {[%clk 0:02:56]} 7. Nb3 {[%clk 0:02:46]}  h6 {[%clk 0:02:53]} 8. O-O {[%clk 0:02:45]}  Be7 {[%clk 0:02:46]} 9. Be3 {[%clk 0:02:39]}  O-O {[%clk 0:02:41]} 10. Qd2 {[%clk 0:02:38]}  Ng4 {[%clk 0:02:36]} 11. Bxg4 {[%clk 0:02:33]}  Bxg4 {[%clk 0:02:35]} 12. Nd5 {[%clk 0:02:33]}  Re8 {[%clk 0:02:16]} 13. h3 {[%clk 0:02:28]}  Be6 {[%clk 0:02:15]} 14. Rad1 {[%clk 0:02:25]}  Bf8 {[%clk 0:02:12]} 15. c3 {[%clk 0:02:18]}  Ne7 {[%clk 0:02:09]} 16. c4 {[%clk 0:01:34]}  Nxd5 {[%clk 0:02:02]} 17. cxd5 {[%clk 0:01:33]}  Bd7 {[%clk 0:02:02]} 18. Rc1 {[%clk 0:01:30]}  f5 {[%clk 0:02:00]} 19. f3 {[%clk 0:01:28]}  Be7 {[%clk 0:01:56]} 20. Rc2 {[%clk 0:01:25]}  Rf8 {[%clk 0:01:34]} 21. Rfc1 {[%clk 0:01:17]}  fxe4 {[%clk 0:01:08]} 22. fxe4 {[%clk 0:01:18]}  Qe8 {[%clk 0:01:08]} 23. Rc7 {[%clk 0:01:14]}  b6 {[%clk 0:00:59]} 24. Qe2 {[%clk 0:01:02]}  Bd8 {[%clk 0:00:54]} 25. R7c3 {[%clk 0:00:39]}  Qg6 {[%clk 0:00:51]} 26. Bf2 {[%clk 0:00:39]}  Bg5 {[%clk 0:00:45]} 27. Rf1 {[%clk 0:00:37]}  Bf4 {[%clk 0:00:32]} 28. Nc1 {[%clk 0:00:29]}  Rab8 {[%clk 0:00:20]} 29. Rf3 {[%clk 0:00:23]}  Rbc8 {[%clk 0:00:13]} 30. Nd3 {[%clk 0:00:23]}  Bb5 {[%clk 0:00:13]} 31. Nxf4 {[%clk 0:00:23]}  Rxf4 {[%clk 0:00:09]} 32. Qxb5 {[%clk 0:00:17]}  Rxf3 {[%clk 0:00:09]} 33. Qd7 {[%clk 0:00:17]}  Rcf8 {[%clk 0:00:09]} 34. Qe6+ {[%clk 0:00:16]}  Qxe6 {[%clk 0:00:09]} 35. dxe6 {[%clk 0:00:17]}  R3f6 {[%clk 0:00:10]} 36. e7 {[%clk 0:00:16]}  Re8 {[%clk 0:00:10]} 37. Rc1 {[%clk 0:00:15]}  Rxe7 {[%clk 0:00:09]} 38. Bh4 {[%clk 0:00:15]}  g5 {[%clk 0:00:09]} 39. Bf2 {[%clk 0:00:15]}  Rf8 {[%clk 0:00:09]} 40. Rc6 {[%clk 0:00:13]}  Rd7 {[%clk 0:00:08]} 41. Be3 {[%clk 0:00:13]}  Kf7 {[%clk 0:00:08]} 42. Kf2 {[%clk 0:00:12]}  Ke6+ {[%clk 0:00:09]} 43. Ke2 {[%clk 0:00:13]}  Rfd8 {[%clk 0:00:07]} 44. Bd2 {[%clk 0:00:12]}  Ke7 {[%clk 0:00:07]} 45. Bb4 {[%clk 0:00:12]}  Rb7 {[%clk 0:00:06]} 46. a4 {[%clk 0:00:11]}  Rdd7 {[%clk 0:00:06]} 47. Rc3 {[%clk 0:00:08]}  Rbc7 {[%clk 0:00:04]} 48. Rd3 {[%clk 0:00:07]}  Rc4 {[%clk 0:00:04]} 49. Bc3 {[%clk 0:00:05]}  Rxe4+ {[%clk 0:00:04]} 50. Kf3 {[%clk 0:00:06]}  Rc4 {[%clk 0:00:04]} 51. Rd5 {[%clk 0:00:05]}  Ke6 {[%clk 0:00:04]} 52. Rd2 {[%clk 0:00:04]}  Rxa4 {[%clk 0:00:04]} 53. g4 {[%clk 0:00:03]}  Rf4+ {[%clk 0:00:04]} 54. Ke3 {[%clk 0:00:03]}  d5 {[%clk 0:00:05]} 55. Ke2 {[%clk 0:00:01]}  d4 {[%clk 0:00:05]} 0-1


[Site "https://www.chess.com"]